fUSD/lending_fUSD_20260508
["ID","MTS","AMOUNT","RATE_DAILY","PERIOD"]
[421853825,1778230241000,-662.72,0.00014999,2]
[421853806,1778230241000,-500.0,0.00014998,2]
[421853808,1778230241000,-500.0,0.00014999,2]
[421853807,1778230241000,-500.0,0.00014999,2]
[421853809,1778230241000,-500.0,0.00014999,2]
[421853814,1778230241000,-507.19084567,0.00014999,2]
[421853811,1778230241000,-500.0,0.00014999,2]
[421853817,1778230241000,-500.0,0.00014999,2]
[421853812,1778230241000,-500.0,0.00014999,2]
[421853813,1778230241000,-500.0,0.00014999,2]
[421853816,1778230241000,-500.0,0.00014999,2]
[421853810,1778230241000,-500.0,0.00014999,2]
[421853818,1778230241000,-500.0,0.00014999,2]
[421853820,1778230241000,-500.0,0.00014999,2]
[421853830,1778230241000,-662.72,0.00014999,2]
[421853819,1778230241000,-500.0,0.00014999,2]
[421853821,1778230241000,-500.0,0.00014999,2]
[421853822,1778230241000,-500.0,0.00014999,2]
[421853826,1778230241000,-662.72,0.00014999,2]
[421853823,1778230241000,-500.0,0.00014999,2]
[421853815,1778230241000,-500.0,0.00014999,2]
[421853828,1778230241000,-662.72,0.00014999,2]
[421853824,1778230241000,-662.72,0.00014999,2]
[421853871,1778230242000,-500.0,0.00014999,2]
[421853869,1778230242000,-500.0,0.00014999,2]
[421853876,1778230242000,-500.0,0.00014999,2]
[421853874,1778230242000,-500.0,0.00014999,2]
[421853875,1778230242000,-150.81422031,0.00014999,2]
[421853870,1778230242000,-500.0,0.00014999,2]
[421853872,1778230242000,-500.0,0.00014999,2]
[421853877,1778230242000,-500.0,0.00014999,2]
[421853878,1778230242000,-240.9193372,0.00014999,2]
[421853879,1778230242000,-500.0,0.00014999,2]
[421853868,1778230242000,-500.0,0.00014999,2]
[421853873,1778230242000,-501.09437893,0.00014999,2]
[421853867,1778230242000,-500.0,0.00014999,2]
[421853857,1778230242000,-500.0,0.00014999,2]
[421853862,1778230242000,-500.0,0.00014999,2]
[421853859,1778230242000,-500.0,0.00014999,2]
[421853865,1778230242000,-509.43717845,0.00014999,2]
[421853864,1778230242000,-500.0,0.00014999,2]
[421853866,1778230242000,-500.0,0.00014999,2]
[421853863,1778230242000,-500.0,0.00014999,2]
[421853860,1778230242000,-500.0,0.00014999,2]
[421853858,1778230242000,-500.0,0.00014999,2]
[421853881,1778230242000,-500.0,0.00014999,2]
[421853856,1778230242000,-284.83695705,0.00014999,2]
[421853855,1778230242000,-500.0,0.00014999,2]
[421853853,1778230242000,-500.0,0.00014999,2]
[421853854,1778230242000,-500.0,0.00014999,2]
[421853861,1778230242000,-500.0,0.00014999,2]
[421853880,1778230242000,-638.58683968,0.00014999,2]
[421853889,1778230242000,-500.0,0.00014999,2]
[421853893,1778230242000,-500.0,0.00014999,2]
[421853917,1778230242000,-496.4167643,0.00015,2]
[421853913,1778230242000,-1078401.10327901,0.00015,2]
[421853911,1778230242000,-677.26240189,0.00014999,2]
[421853912,1778230242000,-300.0,0.00014999,2]
[421853905,1778230242000,-500.0,0.00014999,2]
[421853903,1778230242000,-500.0,0.00014999,2]
[421853906,1778230242000,-500.0,0.00014999,2]
[421853909,1778230242000,-500.0,0.00014999,2]
[421853907,1778230242000,-500.0,0.00014999,2]
[421853901,1778230242000,-500.0,0.00014999,2]
[421853910,1778230242000,-237.95833529,0.00014999,2]
[421853902,1778230242000,-500.0,0.00014999,2]
[421853883,1778230242000,-500.0,0.00014999,2]
[421853899,1778230242000,-508.180674,0.00014999,2]
[421853900,1778230242000,-500.0,0.00014999,2]
[421853908,1778230242000,-500.0,0.00014999,2]
[421853897,1778230242000,-500.0,0.00014999,2]
[421853891,1778230242000,-150.0,0.00014999,2]
[421853890,1778230242000,-560.52710577,0.00014999,2]
[421853892,1778230242000,-500.0,0.00014999,2]
[421853887,1778230242000,-500.0,0.00014999,2]
[421853884,1778230242000,-500.0,0.00014999,2]
[421853895,1778230242000,-500.0,0.00014999,2]
[421853896,1778230242000,-500.0,0.00014999,2]
[421853885,1778230242000,-500.0,0.00014999,2]
[421853882,1778230242000,-500.0,0.00014999,2]
[421853894,1778230242000,-500.0,0.00014999,2]
[421853898,1778230242000,-500.0,0.00014999,2]
[421853904,1778230242000,-500.0,0.00014999,2]
[421853918,1778230243000,-539.44516753,0.00015,2]
[421853919,1778230243000,-5851.98840464,0.00015,2]
[421853920,1778230243000,-396.19499356,0.00015,2]
[421853922,1778230245000,-1202.30727908,0.00015,2]
[421853921,1778230245000,-462.50370956,0.00015,2]
[421853924,1778230246000,-2215.85727489,0.00015,2]
[421853962,1778230425000,171.38694969,0.00012716,30]
[421853963,1778230454000,-2830.1704,0.00011768,2]
[421853966,1778230487000,-304.71058072,0.00013755,2]
[421853965,1778230487000,-300.0,0.00013755,2]
[421853964,1778230487000,-250.0,0.00012945,2]
[421853968,1778230542000,152.0,0.00011722,7]
[421853985,1778231151000,-642.58243452,0.000107,2]
[421853986,1778231154000,-332.41236105,0.000107,2]
[421853987,1778231156000,-551.63968629,0.000107,2]
[421853988,1778231161000,-298.49059868,0.000107,2]
[421853989,1778231164000,-497.59254009,0.000107,2]
[421853990,1778231165000,-297.34498773,0.000107,2]
[421853991,1778231168000,-202.40977853,0.000107,2]
[421853992,1778231171000,300.64,7.448e-05,2]
[421853994,1778231171000,300.64,7.84e-05,2]
[421853993,1778231171000,-155.83,0.000107,2]
[421853996,1778231171000,229.61132404,8.232e-05,2]
[421853997,1778231171000,300.64,8.624e-05,2]
[421853998,1778231171000,300.64,9.016e-05,2]
[421853995,1778231171000,71.02867596,8.232e-05,2]
[421854002,1778231172000,-341.45409034,0.000107,2]
[421854001,1778231172000,-300.64,0.00010192,2]
[421854000,1778231172000,300.64,9.8e-05,2]
[421853999,1778231172000,300.64,9.408e-05,2]
[421854003,1778231250000,150.0,0.000153,120]
[421854005,1778231386000,150.0,0.00030136,120]
[421854029,1778231431000,-420.0,0.00011761,2]
[421854028,1778231431000,-300.64,0.0001176,2]
[421854024,1778231431000,-129802.13497946,0.000107,2]
[421854025,1778231431000,-169.87,0.000107,2]
[421854023,1778231431000,-1200.0,0.00010699,2]
[421854021,1778231431000,-150.0,0.00010699,2]
[421854027,1778231431000,-300.64,0.00011368,2]
[421854026,1778231431000,-300.64,0.00010976,2]
[421854020,1778231431000,-173.03748203,0.00010647,2]
[421854019,1778231431000,-300.64,0.00010584,2]
[421854030,1778231431000,-1680.0,0.00011769,2]
[421854022,1778231431000,-300.0,0.00010699,2]
[421854031,1778231431000,-300.64,0.00012152,2]
[421854042,1778231431000,-300.64,0.00014112,2]
[421854034,1778231431000,-300.64,0.00012936,2]
[421854046,1778231431000,-792.82,0.00014497,2]
[421854033,1778231431000,-587.0,0.00012928,2]
[421854044,1778231431000,-2080.17592889,0.00014366,2]
[421854043,1778231431000,-823.0,0.0001421,2]
[421854041,1778231431000,-250.0,0.00014,2]
[421854039,1778231431000,-200.0,0.00013731,2]
[421854045,1778231431000,-379.748,0.00014485,2]
[421854036,1778231431000,-300.64,0.00013328,2]
[421854040,1778231431000,-350.61787901,0.00013985,2]
[421854032,1778231431000,-300.64,0.00012544,2]
[421854035,1778231431000,-655.0,0.00012946,2]
[421854037,1778231431000,-157.24131601,0.00013488,2]
[421854038,1778231431000,-300.64,0.0001372,2]
[421854063,1778231432000,-545.80942748,0.00014828,2]
[421854062,1778231432000,-545.80942748,0.00014813,2]
[421854059,1778231432000,-596.38879738,0.00014691,2]
[421854056,1778231432000,-962.62717252,0.00014691,2]
[421854048,1778231432000,-1089.2,0.00014497,2]
[421854049,1778231432000,-300.64,0.00014504,2]
[421854047,1778231432000,-2631.39,0.00014497,2]
[421854051,1778231432000,-448.1321,0.00014586,2]
[421854055,1778231432000,-2000.0,0.00014671,2]
[421854053,1778231432000,-350.0,0.00014604,2]
[421854066,1778231432000,-161.75,0.00014865,2]
[421854068,1778231432000,-482.13700008,0.00014873,2]
[421854064,1778231432000,-545.80942748,0.00014842,2]
[421854073,1778231432000,-101.61878338,0.00014873,2]
[421854075,1778231432000,-93.41019158,0.00014886,2]
[421854076,1778231432000,-189.28480834,0.00014893,2]
[421854071,1778231432000,-500.0,0.00014873,2]
[421854072,1778231432000,-398.38121662,0.00014873,2]
[421854074,1778231432000,-452.3992359,0.00014886,2]
[421854067,1778231432000,-545.80942748,0.00014871,2]
[421854065,1778231432000,-545.80942748,0.00014857,2]
[421854061,1778231432000,-545.8094275,0.00014799,2]
[421854069,1778231432000,-500.0,0.00014873,2]
[421854070,1778231432000,-500.0,0.00014873,2]
[421854085,1778231437000,-500.0,0.00014898,2]
[421854079,1778231437000,-2452.0947817,0.00014893,2]
[421854081,1778231437000,-300.64,0.00014896,2]
[421854082,1778231437000,-1608.23,0.00014896,2]
[421854083,1778231437000,-2000.0,0.00014896,2]
[421854084,1778231437000,-500.0,0.00014898,2]
[421854080,1778231437000,-1586.039,0.00014896,2]
[421854091,1778231437000,-500.0,0.00014898,2]
[421854088,1778231437000,-500.0,0.00014898,2]
[421854090,1778231437000,-500.0,0.00014898,2]
[421854089,1778231437000,-500.0,0.00014898,2]
[421854087,1778231437000,-500.0,0.00014898,2]
[421854093,1778231437000,-1397.4775,0.00014899,2]
[421854092,1778231437000,-328.23967217,0.00014898,2]
[421854086,1778231437000,-500.0,0.00014898,2]
[421854122,1778231438000,-500.0,0.00014998,2]
[421854126,1778231438000,-500.0,0.00014999,2]
[421854120,1778231438000,-500.0,0.00014998,2]
[421854119,1778231438000,-500.0,0.00014998,2]
[421854121,1778231438000,-500.0,0.00014998,2]
[421854127,1778231438000,-500.0,0.00014999,2]
[421854118,1778231438000,-500.0,0.00014998,2]
[421854124,1778231438000,-53855.0822969,0.00014999,2]
[421854125,1778231438000,-305.5392619,0.00014999,2]
[421854130,1778231438000,-500.0,0.00014999,2]
[421854129,1778231438000,-500.0,0.00014999,2]
[421854128,1778231438000,-500.0,0.00014999,2]
[421854131,1778231438000,-500.0,0.00014999,2]
[421854132,1778231438000,-500.0,0.00014999,2]
[421854133,1778231438000,-500.0,0.00014999,2]
[421854134,1778231438000,-500.0,0.00014999,2]
[421854135,1778231438000,-527.40008406,0.00014999,2]
[421854116,1778231438000,-500.0,0.00014998,2]
[421854123,1778231438000,-2654.6960725,0.00014999,2]
[421854117,1778231438000,-500.0,0.00014998,2]
[421854102,1778231438000,-1338.53852254,0.000149,2]
[421854110,1778231438000,-545.80942748,0.000149,2]
[421854094,1778231438000,-148814.4553,0.00014899,2]
[421854096,1778231438000,-1338.53852254,0.00014899,2]
[421854095,1778231438000,-1338.53852259,0.00014899,2]
[421854098,1778231438000,-1338.53852254,0.00014899,2]
[421854100,1778231438000,-1338.53852254,0.000149,2]
[421854104,1778231438000,-719.19942132,0.000149,2]
[421854101,1778231438000,-1338.53852254,0.000149,2]
[421854136,1778231438000,-500.0,0.00014999,2]
[421854103,1778231438000,-1338.53852254,0.000149,2]
[421854099,1778231438000,-1338.53852254,0.00014899,2]
[421854097,1778231438000,-1338.53852254,0.00014899,2]
[421854105,1778231438000,-227.93190902,0.000149,2]
[421854106,1778231438000,-2500.0,0.000149,2]
[421854108,1778231438000,-216.30442264,0.000149,2]
[421854112,1778231438000,-439.53953015,0.0001499,2]
[421854109,1778231438000,-392.29050514,0.000149,2]
[421854115,1778231438000,-500.0,0.00014998,2]
[421854111,1778231438000,-911.31458794,0.00014914,2]
[421854114,1778231438000,-439.53953015,0.0001499,2]
[421854113,1778231438000,-439.53953015,0.0001499,2]
[421854138,1778231438000,-500.0,0.00014999,2]
[421854107,1778231438000,-1338.53852254,0.000149,2]
[421854139,1778231438000,-500.0,0.00014999,2]
[421854161,1778231438000,-500.0,0.00014999,2]
[421854165,1778231438000,-500.0,0.00014999,2]
[421854164,1778231438000,-500.0,0.00014999,2]
[421854167,1778231438000,-500.0,0.00014999,2]
[421854169,1778231438000,-300.0,0.00014999,2]
[421854181,1778231438000,150.0,0.000153,120]
[421854174,1778231438000,-420.9,0.00015,2]
[421854173,1778231438000,-3049731.24358512,0.00015,2]
[421854177,1778231438000,-200.0,0.00015,2]
[421854166,1778231438000,-500.0,0.00014999,2]
[421854172,1778231438000,-167.0,0.00015,2]
[421854170,1778231438000,-666.0,0.00014999,2]
[421854168,1778231438000,-476.37915568,0.00014999,2]
[421854175,1778231438000,-2503.58309882,0.00015,14]
[421854176,1778231438000,-5000.0,0.00015,2]
[421854178,1778231438000,-4140410.55725095,0.00015,2]
[421854180,1778231438000,-380.52932165,0.00015,2]
[421854179,1778231438000,-26491.54762082,0.00015,2]
[421854137,1778231438000,-500.0,0.00014999,2]
[421854159,1778231438000,-500.0,0.00014999,2]
[421854154,1778231438000,-500.0,0.00014999,2]
[421854171,1778231438000,-666.0,0.00014999,2]
[421854162,1778231438000,-500.0,0.00014999,2]
[421854140,1778231438000,-500.0,0.00014999,2]
[421854158,1778231438000,-500.0,0.00014999,2]
[421854141,1778231438000,-432.53751313,0.00014999,2]
[421854142,1778231438000,-500.0,0.00014999,2]
[421854146,1778231438000,-500.0,0.00014999,2]
[421854145,1778231438000,-500.0,0.00014999,2]
[421854143,1778231438000,-205.82,0.00014999,2]
[421854150,1778231438000,-500.0,0.00014999,2]
[421854149,1778231438000,-500.0,0.00014999,2]
[421854148,1778231438000,-500.0,0.00014999,2]
[421854144,1778231438000,-288.57649864,0.00014999,2]
[421854160,1778231438000,-500.0,0.00014999,2]
[421854147,1778231438000,-369.39597884,0.00014999,2]
[421854152,1778231438000,-500.0,0.00014999,2]
[421854153,1778231438000,-500.0,0.00014999,2]
[421854156,1778231438000,-500.0,0.00014999,2]
[421854163,1778231438000,-500.0,0.00014999,2]
[421854157,1778231438000,-500.0,0.00014999,2]
[421854151,1778231438000,-500.0,0.00014999,2]
[421854155,1778231438000,-500.0,0.00014999,2]
[421854216,1778231440000,-1536.0,0.00015356,2]
[421854214,1778231440000,-1536.0,0.00015356,2]
[421854213,1778231440000,-151.0,0.00015356,2]
[421854203,1778231440000,-1268.0,0.0001519,2]
[421854212,1778231440000,-1536.0,0.00015356,2]
[421854211,1778231440000,-151.0,0.00015356,2]
[421854209,1778231440000,-151.0,0.00015356,2]
[421854215,1778231440000,-151.0,0.00015356,2]
[421854210,1778231440000,-1536.0,0.00015356,2]
[421854219,1778231440000,-151.0,0.00015356,2]
[421854228,1778231440000,-151.0,0.00015356,2]
[421854217,1778231440000,-151.0,0.00015356,2]
[421854222,1778231440000,-151.0,0.00015356,2]
[421854221,1778231440000,-1536.0,0.00015356,2]
[421854224,1778231440000,-151.0,0.00015356,2]
[421854225,1778231440000,-1536.0,0.00015356,2]
[421854226,1778231440000,-151.0,0.00015356,2]
[421854232,1778231440000,-300.0,0.00015366,2]
[421854231,1778231440000,-1536.0,0.00015356,2]
[421854204,1778231440000,-200.0,0.00015301,2]
[421854218,1778231440000,-1536.0,0.00015356,2]
[421854202,1778231440000,-615.454,0.0001519,2]
[421854184,1778231440000,-200.0,0.00015,2]
[421854206,1778231440000,-300.0,0.00015355,2]
[421854182,1778231440000,-32162.23080007,0.00015,2]
[421854183,1778231440000,-3572930.63761329,0.00015,2]
[421854229,1778231440000,-997.66355495,0.00015356,2]
[421854185,1778231440000,-3000.0,0.00015,2]
[421854187,1778231440000,-3099.0,0.00015,2]
[421854186,1778231440000,-6000.0,0.00015,2]
[421854195,1778231440000,-150.0,0.00015186,2]
[421854192,1778231440000,-166.67,0.00015136,2]
[421854190,1778231440000,-417.0,0.00015057,2]
[421854188,1778231440000,-600.0,0.00015,2]
[421854201,1778231440000,-1352.0,0.0001519,2]
[421854193,1778231440000,-200.0,0.0001515,2]
[421854194,1778231440000,-150.0,0.00015186,2]
[421854191,1778231440000,-151.4597492,0.00015068,2]
[421854197,1778231440000,-165.274,0.0001519,2]
[421854196,1778231440000,-150.203,0.00015186,2]
[421854198,1778231440000,-250.0,0.0001519,2]
[421854199,1778231440000,-166.693,0.0001519,2]
[421854200,1778231440000,-3538.0,0.0001519,2]
[421854205,1778231440000,-474.35,0.00015344,2]
[421854207,1778231440000,-1536.0,0.00015356,2]
[421854208,1778231440000,-1536.0,0.00015356,2]
[421854189,1778231440000,-3626.0,0.00015057,2]
[421854230,1778231440000,-293.78355071,0.00015356,2]
[421854223,1778231440000,-1536.0,0.00015356,2]
[421854234,1778231440000,-1536.0,0.00015367,2]
[421854262,1778231440000,-152.0,0.00015367,2]
[421854260,1778231440000,-152.0,0.00015367,2]
[421854268,1778231440000,-152.0,0.00015367,2]
[421854261,1778231440000,-152.0,0.00015367,2]
[421854263,1778231440000,-152.0,0.00015367,2]
[421854266,1778231440000,-152.0,0.00015367,2]
[421854264,1778231440000,-152.0,0.00015367,2]
[421854265,1778231440000,-152.0,0.00015367,2]
[421854267,1778231440000,-152.0,0.00015367,2]
[421854269,1778231440000,-152.0,0.00015367,2]
[421854270,1778231440000,-257.13086667,0.00015367,2]
[421854279,1778231440000,-200.0,0.00015455,2]
[421854272,1778231440000,-154.0,0.00015367,2]
[421854271,1778231440000,-152.0,0.00015367,2]
[421854275,1778231440000,-1068.05268496,0.00015421,2]
[421854278,1778231440000,-1000.0,0.00015421,2]
[421854276,1778231440000,-785.03778927,0.00015421,2]
[421854277,1778231440000,-1000.0,0.00015421,2]
[421854273,1778231440000,-154.0,0.00015367,2]
[421854274,1778231440000,-155.93137852,0.00015367,2]
[421854227,1778231440000,-1536.0,0.00015356,2]
[421854258,1778231440000,-152.0,0.00015367,2]
[421854259,1778231440000,-152.0,0.00015367,2]
[421854280,1778231440000,-945.0,0.0001562,2]
[421854257,1778231440000,-152.0,0.00015367,2]
[421854233,1778231440000,-1536.0,0.00015367,2]
[421854256,1778231440000,-152.0,0.00015367,2]
[421854235,1778231440000,-1536.0,0.00015367,2]
[421854236,1778231440000,-1536.0,0.00015367,2]
[421854239,1778231440000,-1536.0,0.00015367,2]
[421854238,1778231440000,-1536.0,0.00015367,2]
[421854241,1778231440000,-1536.0,0.00015367,2]
[421854242,1778231440000,-1536.0,0.00015367,2]
[421854240,1778231440000,-1536.0,0.00015367,2]
[421854243,1778231440000,-1536.0,0.00015367,2]
[421854245,1778231440000,-1536.0,0.00015367,2]
[421854237,1778231440000,-1536.0,0.00015367,2]
[421854255,1778231440000,-152.0,0.00015367,2]
[421854246,1778231440000,-1536.0,0.00015367,2]
[421854247,1778231440000,-1536.0,0.00015367,2]
[421854254,1778231440000,-152.0,0.00015367,2]
[421854252,1778231440000,-1536.0,0.00015367,2]
[421854250,1778231440000,-1536.0,0.00015367,2]
[421854249,1778231440000,-1536.0,0.00015367,2]
[421854253,1778231440000,-1536.0,0.00015367,2]
[421854248,1778231440000,-1536.0,0.00015367,2]
[421854244,1778231440000,-1536.0,0.00015367,2]
[421854251,1778231440000,-1536.0,0.00015367,2]
[421854319,1778231441000,-2000.0,0.00016758,2]
[421854322,1778231441000,-502.41572104,0.00016986,2]
[421854311,1778231441000,-500.0,0.00016438,2]
[421854321,1778231441000,-999.99,0.00016922,2]
[421854320,1778231441000,-2562.33958577,0.00016899,2]
[421854318,1778231441000,-592.36283,0.00016671,2]
[421854314,1778231441000,-504.43834535,0.00016438,2]
[421854315,1778231441000,-503.28312204,0.00016438,2]
[421854313,1778231441000,-500.0,0.00016438,2]
[421854316,1778231441000,-1182.06033118,0.00016516,2]
[421854324,1778231441000,-1000.0,0.00016986,2]
[421854317,1778231441000,-2000.0,0.00016516,2]
[421854325,1778231441000,-503.23430575,0.00016986,2]
[421854336,1778231441000,-500.82435689,0.00017073,2]
[421854323,1778231441000,-501.49028968,0.00016986,2]
[421854327,1778231441000,-1000.0,0.00016986,2]
[421854328,1778231441000,-500.0,0.0001701,2]
[421854330,1778231441000,-136936.7724218,0.00017011,2]
[421854329,1778231441000,-1488.0783074,0.00017011,2]
[421854331,1778231441000,-284.0,0.00017014,2]
[421854332,1778231441000,-186.916363,0.0001702,2]
[421854340,1778231441000,-500.0,0.00017073,2]
[421854335,1778231441000,-165.70740225,0.00017073,2]
[421854333,1778231441000,-2500.0,0.00017064,2]
[421854341,1778231441000,-500.0,0.00017073,2]
[421854312,1778231441000,-500.0,0.00016438,2]
[421854326,1778231441000,-502.65385745,0.00016986,2]
[421854309,1778231441000,-500.0,0.00016438,2]
[421854284,1778231441000,-350.0,0.00015863,2]
[421854308,1778231441000,-313.80524585,0.00016438,2]
[421854334,1778231441000,-165.5192169,0.00017073,2]
[421854281,1778231441000,-207.99170503,0.00015638,2]
[421854282,1778231441000,-160.0,0.00015638,2]
[421854283,1778231441000,-214.68143985,0.00015638,2]
[421854285,1778231441000,-788.77,0.0001592,2]
[421854286,1778231441000,-1500.0,0.00015968,2]
[421854292,1778231441000,-388.20132,0.0001607,2]
[421854290,1778231441000,-186.65318377,0.00016,2]
[421854287,1778231441000,-1500.0,0.00015968,2]
[421854288,1778231441000,-215.0,0.00016,2]
[421854289,1778231441000,-300.0,0.00016,2]
[421854294,1778231441000,-388.20133,0.0001607,2]
[421854293,1778231441000,-388.20132,0.0001607,2]
[421854291,1778231441000,-388.20132,0.0001607,2]
[421854295,1778231441000,-388.20132,0.0001609,2]
[421854296,1778231441000,-388.20132,0.0001609,2]
[421854297,1778231441000,-234.174528,0.0001611,2]
[421854307,1778231441000,-500.0,0.00016438,2]
[421854299,1778231441000,-781.13,0.00016194,2]
[421854304,1778231441000,-704.3,0.00016438,2]
[421854302,1778231441000,-354.14992006,0.00016357,2]
[421854303,1778231441000,-350.0,0.00016389,2]
[421854300,1778231441000,-150.0,0.00016199,2]
[421854301,1778231441000,-150.0,0.000162,2]
[421854298,1778231441000,-823.453767,0.0001611,2]
[421854306,1778231441000,-150.44361294,0.00016438,2]
[421854305,1778231441000,-301.40443782,0.00016438,2]
[421854310,1778231441000,-500.0,0.00016438,2]
[421854339,1778231441000,-186.53575633,0.00017073,2]
[421854387,1778231441000,-174.61919141,0.00018421,2]
[421854337,1778231441000,-500.43191244,0.00017073,2]
[421854373,1778231441000,-1034.15,0.0001819,2]
[421854372,1778231441000,-150.0,0.0001819,2]
[421854377,1778231441000,-704.3,0.0001841,2]
[421854376,1778231441000,-489.25874705,0.000184,2]
[421854375,1778231441000,-489.25874705,0.000182,2]
[421854378,1778231441000,-620.73337955,0.00018421,2]
[421854380,1778231441000,-151.0,0.00018421,2]
[421854389,1778231441000,-489.25874705,0.000185,2]
[421854388,1778231441000,-151.0,0.00018476,2]
[421854381,1778231441000,-152.0,0.00018421,2]
[421854382,1778231441000,-152.0,0.00018421,2]
[421854379,1778231441000,-1568.20362515,0.00018421,2]
[421854384,1778231441000,-152.0,0.00018421,2]
[421854386,1778231441000,-292.52222216,0.00018421,2]
[421854395,1778231441000,-395.15,0.0001866,2]
[421854385,1778231441000,-152.0,0.00018421,2]
[421854390,1778231441000,-151.0,0.00018531,2]
[421854392,1778231441000,-151.0,0.00018586,2]
[421854393,1778231441000,-2000.0,0.0001862,2]
[421854399,1778231441000,-502.27455724,0.00018733,2]
[421854398,1778231441000,-1000.0,0.00018733,2]
[421854396,1778231441000,-151.0,0.00018696,2]
[421854397,1778231441000,-489.25874705,0.000187,2]
[421854400,1778231441000,-719.19942127,0.00018733,2]
[421854401,1778231441000,-2651.0,0.00018745,2]
[421854394,1778231441000,-151.0,0.00018641,2]
[421854338,1778231441000,-500.0,0.00017073,2]
[421854371,1778231441000,-150.0,0.0001819,2]
[421854368,1778231441000,-500.0,0.00018185,2]
[421854383,1778231441000,-152.0,0.00018421,2]
[421854370,1778231441000,-150.0,0.00018186,2]
[421854374,1778231441000,-745.239,0.0001819,2]
[421854343,1778231441000,-299.29662906,0.0001722,2]
[421854344,1778231441000,-474.35,0.00017262,2]
[421854348,1778231441000,-2651.0,0.00017456,2]
[421854346,1778231441000,-368.797966,0.00017346,2]
[421854347,1778231441000,-168.88,0.00017372,2]
[421854349,1778231441000,-2000.0,0.00017472,2]
[421854345,1778231441000,-311.892843,0.00017346,2]
[421854350,1778231441000,-993.78348246,0.00017534,2]
[421854352,1778231441000,-150.0,0.0001755,2]
[421854351,1778231441000,-399.67636483,0.00017534,2]
[421854354,1778231441000,-3000.0,0.00017612,2]
[421854353,1778231441000,-150.0,0.0001755,2]
[421854355,1778231441000,-1000.0,0.00017621,2]
[421854342,1778231441000,-225.006114,0.00017107,2]
[421854363,1778231441000,-754.146,0.00018057,2]
[421854357,1778231441000,-711.6142385,0.00017621,2]
[421854361,1778231441000,-489.25874705,0.00018,2]
[421854359,1778231441000,-1204.97640528,0.00018,2]
[421854358,1778231441000,-1236.65563853,0.0001789,2]
[421854360,1778231441000,-1043.45173831,0.00018,2]
[421854362,1778231441000,-350.0,0.00018,2]
[421854365,1778231441000,-703.19543783,0.0001816,2]
[421854366,1778231441000,-500.0,0.00018168,2]
[421854356,1778231441000,-711.982935,0.00017621,2]
[421854364,1778231441000,-417.0,0.00018057,2]
[421854367,1778231441000,-500.0,0.00018185,2]
[421854369,1778231441000,-150.0,0.00018186,2]
[421854438,1778231442000,-264.22,0.00019493,2]
[421854440,1778231442000,-187.78006525,0.00019517,2]
[421854432,1778231442000,-711.97705762,0.00019392,2]
[421854441,1778231442000,-644.21381956,0.0001956,2]
[421854435,1778231442000,-711.97705762,0.00019434,2]
[421854439,1778231442000,-711.97705762,0.00019495,2]
[421854434,1778231442000,-711.97705762,0.00019395,2]
[421854442,1778231442000,-500.0,0.00019573,2]
[421854436,1778231442000,-2377.88,0.00019492,2]
[421854443,1778231442000,-2010.17,0.00019674,2]
[421854444,1778231442000,-250.96187286,0.00019726,2]
[421854446,1778231442000,-6030.53,0.00019937,2]